fUSD/lending_fUSD_20250609
["ID","MTS","AMOUNT","RATE_DAILY","PERIOD"]
[365132673,1749483075836,-490.0,0.00019671,2]
[365132674,1749483075846,-490.0,0.00019671,2]
[365132675,1749483075856,-490.0,0.00019671,2]
[365132676,1749483075867,-490.0,0.00019671,2]
[365132677,1749483075876,-490.0,0.00019671,2]
[365132678,1749483075886,-490.0,0.00019671,2]
[365132679,1749483075895,-490.0,0.00019671,2]
[365132680,1749483075905,-490.0,0.00019671,2]
[365132681,1749483075914,-490.0,0.00019671,2]
[365132682,1749483075923,-382.1087559,0.00019671,2]
[365132683,1749483075933,-490.0,0.00019671,2]
[365132684,1749483075942,-490.0,0.00019671,2]
[365132685,1749483075952,-490.0,0.00019671,2]
[365132686,1749483075963,-539.7774631,0.00019671,2]
[365132687,1749483075972,-490.0,0.00019671,2]
[365132688,1749483075982,-490.0,0.00019671,2]
[365132689,1749483075992,-490.0,0.00019671,2]
[365132690,1749483076002,-490.0,0.00019671,2]
[365132691,1749483076011,-513.87939294,0.00019671,2]
[365132692,1749483076023,-999.55,0.00019671,2]
[365132693,1749483076032,-865.2,0.00019671,2]
[365132694,1749483076042,-490.0,0.00019671,2]
[365132695,1749483076052,-490.0,0.00019671,2]
[365132696,1749483076062,-431.16294386,0.00019671,2]
[365132697,1749483076071,-490.0,0.00019671,2]
[365132698,1749483076080,-476.45589045,0.00019671,2]
[365132699,1749483076090,-490.0,0.00019671,2]
[365132700,1749483076099,-523.11,0.00019671,2]
[365132701,1749483076109,-490.0,0.00019671,2]
[365132702,1749483076119,-814.24,0.00019671,2]
[365132703,1749483076128,-744.43,0.00019671,2]
[365132704,1749483076138,-490.0,0.00019671,2]
[365132705,1749483076148,-1000.0,0.00019671,2]
[365132706,1749483076158,-490.0,0.00019671,2]
[365132707,1749483076167,-421.49158313,0.00019671,2]
[365132708,1749483076176,-707.24,0.00019671,2]
[365132709,1749483076186,-490.0,0.00019671,2]
[365132710,1749483076199,-490.0,0.00019671,2]
[365132711,1749483076208,-385.0969852,0.00019671,2]
[365132712,1749483076217,-490.0,0.00019671,2]
[365132713,1749483076226,-490.0,0.00019671,2]
[365132714,1749483076235,-490.0,0.00019671,2]
[365132715,1749483076245,-429.96805543,0.00019671,2]
[365132716,1749483076254,-490.0,0.00019671,2]
[365132717,1749483076447,-392.39204549,0.00019671,2]
[365132718,1749483076457,-796.13,0.00019671,2]
[365132719,1749483076466,-430.0,0.00019671,2]
[365132720,1749483076475,-490.0,0.00019671,2]
[365132721,1749483076485,-981.58,0.00019671,2]
[365132722,1749483076494,-490.0,0.00019671,2]
[365132723,1749483076503,-490.0,0.00019671,2]
[365132724,1749483076512,-490.0,0.00019671,2]
[365132725,1749483076521,-410.0,0.00019671,2]
[365132726,1749483076530,-676.22,0.00019671,2]
[365132727,1749483076540,-566.83,0.00019671,2]
[365132728,1749483076549,-164.09847022,0.00019671,2]
[365132729,1749483076558,-1755.31,0.00019671,2]
[365132730,1749483076567,-342.47859786,0.00019671,2]
[365132731,1749483076577,-490.0,0.00019671,2]
[365132732,1749483076587,-490.0,0.00019671,2]
[365132733,1749483076597,-490.0,0.00019671,2]
[365132734,1749483076606,-668.34,0.00019671,2]
[365132735,1749483076615,-490.0,0.00019671,2]
[365132736,1749483076625,-490.0,0.00019671,2]
[365132737,1749483076635,-490.0,0.00019671,2]
[365132738,1749483076643,-1527.86,0.00019671,2]
[365132739,1749483076653,-421.01134746,0.00019671,2]
[365132740,1749483076663,-390.0,0.00019671,2]
[365132741,1749483076672,-659.05,0.00019671,2]
[365132742,1749483076682,-802.07,0.00019671,2]
[365132743,1749483076691,-410.0,0.00019671,2]
[365132744,1749483076703,-1450.57,0.00019671,2]
[365132745,1749483076712,-490.0,0.00019671,2]
[365132746,1749483076722,-490.0,0.00019671,2]
[365132747,1749483076732,-490.0,0.00019671,2]
[365132748,1749483076741,-490.0,0.00019671,2]
[365132749,1749483076751,-490.0,0.00019671,2]
[365132750,1749483076760,-490.0,0.00019671,2]
[365132751,1749483076770,-490.0,0.00019671,2]
[365132752,1749483076780,-490.0,0.00019671,2]
[365132753,1749483076789,-490.0,0.00019671,2]
[365132754,1749483076799,-490.0,0.00019671,2]
[365132755,1749483076808,-490.0,0.00019671,2]
[365132756,1749483076818,-445.81615364,0.00019671,2]
[365132757,1749483076828,-490.0,0.00019671,2]
[365132758,1749483076838,-490.0,0.00019671,2]
[365132759,1749483076848,-821.7,0.00019671,2]
[365132760,1749483076858,-1091.28,0.00019671,2]
[365132761,1749483076867,-1295.53,0.00019671,2]
[365132762,1749483076878,-490.0,0.00019671,2]
[365132763,1749483076888,-215.02844632,0.00019671,2]
[365132764,1749483076898,-490.0,0.00019671,2]
[365132765,1749483076908,-490.0,0.00019671,2]
[365132766,1749483076918,-490.0,0.00019671,2]
[365132767,1749483076927,-490.0,0.00019671,2]
[365132768,1749483076938,-490.0,0.00019671,2]
[365132769,1749483076948,-490.0,0.00019671,2]
[365132770,1749483076957,-419.68581883,0.00019671,2]
[365132771,1749483076967,-497.85,0.00019671,2]
[365132772,1749483076977,-490.0,0.00019671,2]
[365132773,1749483076986,-1417.53,0.00019671,2]
[365132774,1749483076996,-490.0,0.00019671,2]
[365132775,1749483077006,-1137.32,0.00019671,2]
[365132776,1749483077016,-490.0,0.00019671,2]
[365132777,1749483077025,-490.0,0.00019671,2]
[365132778,1749483077035,-490.0,0.00019671,2]
[365132779,1749483077044,-956.36,0.00019671,2]
[365132780,1749483077054,-490.0,0.00019671,2]
[365132781,1749483077063,-490.0,0.00019671,2]
[365132782,1749483077073,-817.39,0.00019671,2]
[365132783,1749483077082,-764.54,0.00019671,2]
[365132784,1749483077092,-490.0,0.00019671,2]
[365132785,1749483077101,-1062.54,0.00019671,2]
[365132786,1749483077110,-490.0,0.00019671,2]
[365132787,1749483077119,-490.0,0.00019671,2]
[365132788,1749483077129,-509.77,0.00019671,2]
[365132789,1749483077138,-390.0,0.00019671,2]
[365132790,1749483077148,-490.0,0.00019671,2]
[365132791,1749483077158,-490.0,0.00019671,2]
[365132792,1749483077167,-1457.09,0.00019671,2]
[365132793,1749483077177,-490.0,0.00019671,2]
[365132794,1749483077190,-490.0,0.00019671,2]
[365132795,1749483077199,-490.0,0.00019671,2]
[365132796,1749483077209,-552.79,0.00019671,2]
[365132797,1749483077219,-490.0,0.00019671,2]
[365132798,1749483077228,-490.0,0.00019671,2]
[365132799,1749483077238,-490.0,0.00019671,2]
[365132800,1749483077248,-490.0,0.00019671,2]
[365132801,1749483077257,-490.0,0.00019671,2]
[365132802,1749483077266,-490.0,0.00019671,2]
[365132803,1749483077275,-617.97,0.00019671,2]
[365132804,1749483077285,-490.0,0.00019671,2]
[365132805,1749483077294,-622.17,0.00019671,2]
[365132806,1749483077303,-490.0,0.00019671,2]
[365132807,1749483077313,-490.0,0.00019671,2]
[365132808,1749483077322,-1217.3,0.00019671,2]
[365132809,1749483077332,-1595.71,0.00019671,2]
[365132810,1749483077342,-490.0,0.00019671,2]
[365132811,1749483077351,-490.0,0.00019671,2]
[365132812,1749483077361,-490.0,0.00019671,2]
[365132813,1749483077371,-490.0,0.00019671,2]
[365132814,1749483077380,-498.84,0.00019671,2]
[365132815,1749483077389,-490.0,0.00019671,2]
[365132816,1749483077399,-490.0,0.00019671,2]
[365132817,1749483077409,-490.0,0.00019671,2]
[365132818,1749483077419,-490.0,0.00019671,2]
[365132819,1749483077428,-490.0,0.00019671,2]
[365132820,1749483077440,-490.0,0.00019671,2]
[365132821,1749483077450,-490.0,0.00019671,2]
[365132822,1749483077459,-674.79,0.00019671,2]
[365132823,1749483077468,-1033.76,0.00019671,2]
[365132824,1749483077477,-197.02497007,0.00019671,2]
[365132825,1749483077487,-490.0,0.00019671,2]
[365132826,1749483077496,-490.0,0.00019671,2]
[365132827,1749483077505,-653.73,0.00019671,2]
[365132828,1749483077515,-648.79,0.00019671,2]
[365132829,1749483077524,-490.0,0.00019671,2]
[365132830,1749483077534,-390.0,0.00019671,2]
[365132831,1749483077543,-490.0,0.00019671,2]
[365132832,1749483077552,-937.29,0.00019671,2]
[365132833,1749483077561,-677.21,0.00019671,2]
[365132834,1749483077571,-379.52122212,0.00019671,2]
[365132835,1749483077580,-702.72,0.00019671,2]
[365132836,1749483077589,-672.76,0.00019671,2]
[365132837,1749483077599,-490.0,0.00019671,2]
[365132838,1749483077608,-743.43,0.00019671,2]
[365132839,1749483077617,-837.84,0.00019671,2]
[365132840,1749483077627,-582.62808773,0.00019671,2]
[365132841,1749483077636,-1640.42,0.00019671,2]
[365132842,1749483077646,-778.26,0.00019671,2]
[365132843,1749483077655,-490.0,0.00019671,2]
[365132844,1749483077665,-490.0,0.00019671,2]
[365132845,1749483077674,-614.09,0.00019671,2]
[365132846,1749483077685,-1417.64,0.00019671,2]
[365132847,1749483077695,-554.63,0.00019671,2]
[365132848,1749483077708,-490.0,0.00019671,2]
[365132849,1749483077717,-597.88,0.00019671,2]
[365132850,1749483077727,-768.99,0.00019671,2]
[365132851,1749483077736,-271.19897661,0.00019671,2]
[365132852,1749483077747,-490.0,0.00019671,2]
[365132853,1749483077757,-490.0,0.00019671,2]
[365132854,1749483077766,-490.0,0.00019671,2]
[365132855,1749483077776,-490.0,0.00019671,2]
[365132856,1749483077785,-490.0,0.00019671,2]
[365132857,1749483077795,-490.0,0.00019671,2]
[365132858,1749483077804,-490.0,0.00019671,2]
[365132859,1749483077814,-490.0,0.00019671,2]
[365132860,1749483077824,-625.96,0.00019671,2]
[365132861,1749483077833,-390.0,0.00019671,2]
[365132862,1749483077843,-2189.91,0.00019671,2]
[365132863,1749483077853,-490.0,0.00019671,2]
[365132864,1749483077863,-490.0,0.00019671,2]
[365132865,1749483077872,-585.73,0.00019671,2]
[365132866,1749483077882,-490.0,0.00019671,2]
[365132867,1749483077892,-490.0,0.00019671,2]
[365132868,1749483077902,-670.25,0.00019671,2]
[365132869,1749483077911,-490.0,0.00019671,2]
[365132870,1749483077921,-603.83,0.00019671,2]
[365132871,1749483077930,-1956.09,0.00019671,2]
[365132872,1749483077940,-490.0,0.00019671,2]
[365132873,1749483077950,-454.15897064,0.00019671,2]
[365132874,1749483077959,-351.35900449,0.00019671,2]
[365132875,1749483077969,-490.0,0.00019671,2]
[365132876,1749483077980,-490.0,0.00019671,2]
[365132877,1749483077990,-490.0,0.00019671,2]
[365132878,1749483077999,-490.0,0.00019671,2]
[365132879,1749483078009,-427.80031658,0.00019671,2]
[365132880,1749483078018,-511.93,0.00019671,2]
[365132881,1749483078028,-490.0,0.00019671,2]
[365132882,1749483078038,-490.0,0.00019671,2]
[365132883,1749483078048,-490.0,0.00019671,2]
[365132884,1749483078057,-1242.69,0.00019671,2]
[365132885,1749483078067,-490.0,0.00019671,2]
[365132886,1749483078076,-490.0,0.00019671,2]
[365132887,1749483078086,-964.85,0.00019671,2]
[365132888,1749483078095,-950.14,0.00019671,2]
[365132889,1749483078104,-490.0,0.00019671,2]
[365132890,1749483078113,-490.0,0.00019671,2]
[365132891,1749483078123,-490.0,0.00019671,2]
[365132892,1749483078133,-490.0,0.00019671,2]
[365132893,1749483078142,-490.0,0.00019671,2]
[365132894,1749483078151,-589.26,0.00019671,2]
[365132895,1749483078160,-490.0,0.00019671,2]
[365132896,1749483078170,-490.0,0.00019671,2]
[365132897,1749483078182,-490.0,0.00019671,2]
[365132898,1749483078192,-490.0,0.00019671,2]
[365132899,1749483078201,-490.0,0.00019671,2]
[365132900,1749483078210,-490.0,0.00019671,2]
[365132901,1749483078220,-555.97,0.00019671,2]
[365132902,1749483078229,-490.0,0.00019671,2]
[365132903,1749483078238,-1981.06,0.00019671,2]
[365132904,1749483078248,-490.0,0.00019671,2]
[365132905,1749483078257,-671.97,0.00019671,2]
[365132906,1749483078267,-490.0,0.00019671,2]
[365132907,1749483078276,-490.0,0.00019671,2]
[365132908,1749483078286,-490.0,0.00019671,2]
[365132909,1749483078295,-490.0,0.00019671,2]
[365132910,1749483078304,-490.0,0.00019671,2]
[365132911,1749483078313,-500.3,0.00019671,2]
[365132912,1749483078323,-1734.96,0.00019671,2]
[365132913,1749483078332,-490.0,0.00019671,2]
[365132914,1749483078342,-1126.95,0.00019671,2]
[365132915,1749483078351,-490.0,0.00019671,2]
[365132916,1749483078361,-546.14,0.00019671,2]
[365132917,1749483078371,-797.07,0.00019671,2]
[365132918,1749483078380,-490.0,0.00019671,2]
[365132919,1749483078390,-346.00318311,0.00019671,2]
[365132920,1749483078399,-490.0,0.00019671,2]
[365132921,1749483078408,-490.0,0.00019671,2]
[365132922,1749483078418,-2282.94,0.00019671,2]
[365132923,1749483078429,-1056.14,0.00019671,2]
[365132924,1749483078439,-490.0,0.00019671,2]
[365132925,1749483078449,-799.36,0.00019671,2]
[365132926,1749483078458,-490.0,0.00019671,2]
[365132927,1749483078467,-1385.25,0.00019671,2]
[365132928,1749483078477,-996.27,0.00019671,2]
[365132929,1749483078486,-490.0,0.00019671,2]
[365132930,1749483078495,-490.0,0.00019671,2]
[365132931,1749483078505,-337.59830839,0.00019671,2]
[365132932,1749483078514,-490.0,0.00019671,2]
[365132933,1749483078523,-490.0,0.00019671,2]
[365132934,1749483078532,-1569.9,0.00019671,2]
[365132935,1749483078542,-1107.3,0.00019671,2]
[365132936,1749483078551,-1707.19,0.00019671,2]
[365132937,1749483078560,-490.0,0.00019671,2]
[365132938,1749483078569,-490.0,0.00019671,2]
[365132939,1749483078578,-490.0,0.00019671,2]
[365132940,1749483078587,-490.0,0.00019671,2]
[365132941,1749483078596,-1434.9,0.00019671,2]
[365132942,1749483078605,-812.1,0.00019671,2]
[365132943,1749483078615,-490.0,0.00019671,2]
[365132944,1749483078624,-490.0,0.00019671,2]
[365132945,1749483078633,-1166.53,0.00019671,2]
[365132946,1749483078643,-490.0,0.00019671,2]
[365132947,1749483078652,-1060.33,0.00019671,2]
[365132948,1749483078663,-490.0,0.00019671,2]
[365132949,1749483078673,-422.26232599,0.00019671,2]
[365132950,1749483078683,-490.0,0.00019671,2]
[365132951,1749483078693,-811.48,0.00019671,2]
[365132952,1749483078706,-490.0,0.00019671,2]
[365132953,1749483078715,-1229.57,0.00019671,2]
[365132954,1749483078725,-490.0,0.00019671,2]
[365132955,1749483078735,-1849.71,0.00019671,2]
[365132956,1749483078744,-490.0,0.00019671,2]
[365132957,1749483078754,-490.0,0.00019671,2]
[365132958,1749483078763,-1219.27,0.00019671,2]
[365132959,1749483078773,-490.0,0.00019671,2]
[365132960,1749483078782,-3016.66,0.00019671,2]
[365132961,1749483078792,-214.8104788,0.00019671,2]
[365132962,1749483078801,-490.0,0.00019671,2]
[365132963,1749483078811,-390.0,0.00019671,2]
[365132964,1749483078820,-490.0,0.00019671,2]
[365132965,1749483078830,-490.0,0.00019671,2]
[365132966,1749483078839,-490.0,0.00019671,2]
[365132967,1749483078849,-390.0,0.00019671,2]
[365132968,1749483078858,-490.0,0.00019671,2]
[365132969,1749483078868,-430.00740803,0.00019671,2]
[365132970,1749483078878,-490.0,0.00019671,2]
[365132971,1749483078887,-490.0,0.00019671,2]
[365132972,1749483078897,-490.0,0.00019671,2]
[365132973,1749483078907,-916.39,0.00019671,2]
[365132974,1749483078916,-2031.94,0.00019671,2]
[365132975,1749483078926,-490.0,0.00019671,2]
[365132976,1749483078935,-493.89,0.00019671,2]
[365132977,1749483078945,-866.46,0.00019671,2]
[365132978,1749483078954,-588.0,0.00019671,2]
[365132979,1749483078963,-490.0,0.00019671,2]
[365132980,1749483078973,-490.0,0.00019671,2]
[365132981,1749483078982,-490.0,0.00019671,2]
[365132982,1749483078991,-490.0,0.00019671,2]
[365132983,1749483079000,-490.0,0.00019671,2]
[365132984,1749483079010,-1409.42,0.00019671,2]
[365132985,1749483079019,-1728.17,0.00019671,2]
[365132986,1749483079028,-490.0,0.00019671,2]
[365132987,1749483079037,-490.0,0.00019671,2]
[365132988,1749483079047,-182.33685086,0.00019671,2]
[365132989,1749483079056,-490.0,0.00019671,2]
[365132990,1749483079066,-490.0,0.00019671,2]
[365132991,1749483079075,-490.0,0.00019671,2]
[365132992,1749483079084,-490.0,0.00019671,2]
[365132993,1749483079093,-490.0,0.00019671,2]
[365132994,1749483079102,-490.0,0.00019671,2]
[365132995,1749483079112,-490.0,0.00019671,2]
[365132996,1749483079121,-1083.55,0.00019671,2]
[365132997,1749483079131,-1017.88,0.00019671,2]
[365132998,1749483079140,-633.45,0.00019671,2]
[365132999,1749483079149,-5093.55,0.00019671,2]
[365133000,1749483079159,-490.0,0.00019671,2]
[365133001,1749483079169,-633.62,0.00019671,2]
[365133002,1749483079178,-490.0,0.00019671,2]
[365133003,1749483079187,-292.06822644,0.00019671,2]
[365133004,1749483079197,-801.41,0.00019671,2]
[365133005,1749483079207,-490.0,0.00019671,2]
[365133006,1749483079216,-636.15,0.00019671,2]
[365133007,1749483079225,-552.46229094,0.00019671,2]
[365133008,1749483079235,-490.0,0.00019671,2]
[365133009,1749483079244,-490.0,0.00019671,2]
[365133010,1749483079255,-1583.68,0.00019671,2]
[365133011,1749483079264,-490.0,0.00019671,2]
[365133012,1749483079274,-490.0,0.00019671,2]
[365133013,1749483079283,-490.0,0.00019671,2]
[365133014,1749483079293,-490.0,0.00019671,2]
[365133015,1749483079303,-1582.71,0.00019671,2]
[365133016,1749483079312,-490.0,0.00019671,2]
[365133017,1749483079322,-1094.41,0.00019671,2]
[365133018,1749483079331,-490.0,0.00019671,2]
[365133019,1749483079340,-1023.48,0.00019671,2]
[365133020,1749483079350,-829.53,0.00019671,2]
[365133021,1749483079360,-236.16568965,0.00019671,2]
[365133022,1749483079370,-490.0,0.00019671,2]
[365133023,1749483079379,-3762.21,0.00019671,2]
[365133024,1749483079389,-510.62,0.00019671,2]
[365133025,1749483079398,-1837.5,0.00019671,2]
[365133026,1749483079585,-490.0,0.00019671,2]
[365133027,1749483079595,-490.0,0.00019671,2]
[365133028,1749483079604,-961.74,0.00019671,2]
[365133029,1749483079613,-490.0,0.00019671,2]
[365133030,1749483079622,-1826.81,0.00019671,2]
[365133031,1749483079630,-681.26,0.00019671,2]
[365133032,1749483079638,-490.0,0.00019671,2]
[365133033,1749483079647,-654.08,0.00019671,2]
[365133034,1749483079656,-490.0,0.00019671,2]
[365133035,1749483079665,-490.0,0.00019671,2]
[365133036,1749483079674,-1517.11,0.00019671,2]
[365133037,1749483079683,-561.23327685,0.00019671,2]
[365133038,1749483079692,-490.0,0.00019671,2]
[365133039,1749483079703,-1088.59,0.00019671,2]
[365133040,1749483079712,-1035.12,0.00019671,2]
[365133041,1749483079722,-490.0,0.00019671,2]
[365133042,1749483079731,-390.0,0.00019671,2]
[365133043,1749483079739,-550.71,0.00019671,2]
[365133044,1749483079749,-490.0,0.00019671,2]
[365133045,1749483079760,-490.0,0.00019671,2]
[365133046,1749483079769,-1000.0,0.00019671,2]
[365133047,1749483079781,-1876.05,0.00019671,2]
[365133048,1749483079791,-1179.61,0.00019671,2]
[365133049,1749483079800,-490.0,0.00019671,2]
[365133050,1749483079809,-490.0,0.00019671,2]
[365133051,1749483079818,-490.0,0.00019671,2]
[365133052,1749483079827,-691.04,0.00019671,2]
[365133053,1749483079836,-2182.45,0.00019671,2]
[365133054,1749483079844,-490.0,0.00019671,2]
[365133055,1749483079853,-490.0,0.00019671,2]
[365133056,1749483079862,-1170.03,0.00019671,2]
[365133057,1749483079871,-490.0,0.00019671,2]
[365133058,1749483079880,-490.0,0.00019671,2]
[365133059,1749483079890,-1699.73,0.00019671,2]
[365133060,1749483079899,-490.0,0.00019671,2]
[365133061,1749483079908,-490.0,0.00019671,2]
[365133062,1749483079916,-1727.29,0.00019671,2]
[365133063,1749483079924,-490.0,0.00019671,2]
[365133064,1749483079931,-611.81,0.00019671,2]
[365133065,1749483079940,-1457.22,0.00019671,2]
[365133066,1749483079948,-490.0,0.00019671,2]
[365133067,1749483079955,-997.84,0.00019671,2]
[365133068,1749483079963,-1394.31,0.00019671,2]
[365133069,1749483079971,-647.25,0.00019671,2]
[365133070,1749483079979,-490.0,0.00019671,2]
[365133071,1749483079986,-490.0,0.00019671,2]
[365133072,1749483079993,-1332.83,0.00019671,2]
[365133073,1749483080002,-2322.92,0.00019671,2]
[365133074,1749483080010,-490.0,0.00019671,2]
[365133075,1749483080017,-1088.58,0.00019671,2]
[365133076,1749483080024,-1821.45,0.00019671,2]
[365133077,1749483080031,-931.15,0.00019671,2]
[365133078,1749483080038,-672.55,0.00019671,2]
[365133079,1749483080044,-2502.63,0.00019671,2]
[365133080,1749483080052,-490.0,0.00019671,2]
[365133081,1749483080062,-1659.75,0.00019671,2]
[365133082,1749483080072,-490.0,0.00019671,2]
[365133083,1749483080082,-490.0,0.00019671,2]
[365133084,1749483080092,-490.0,0.00019671,2]
[365133085,1749483080102,-2136.28,0.00019671,2]
[365133086,1749483080111,-834.05,0.00019671,2]
[365133087,1749483080121,-490.0,0.00019671,2]
[365133088,1749483080131,-735.43,0.00019671,2]
[365133089,1749483080140,-490.0,0.00019671,2]
[365133090,1749483080150,-490.0,0.00019671,2]
[365133091,1749483080159,-3430.09,0.00019671,2]
[365133092,1749483080168,-652.14,0.00019671,2]
[365133093,1749483080178,-490.0,0.00019671,2]
[365133094,1749483080188,-1582.44,0.00019671,2]
[365133095,1749483080198,-415.65283659,0.00019671,2]
[365133096,1749483080207,-2912.11,0.00019671,2]
[365133097,1749483080217,-490.0,0.00019671,2]
[365133098,1749483080226,-490.0,0.00019671,2]
[365133099,1749483080237,-2206.11,0.00019671,2]
[365133100,1749483080246,-740.69,0.00019671,2]
[365133101,1749483080255,-1326.67,0.00019671,2]
[365133102,1749483080265,-490.0,0.00019671,2]
[365133103,1749483080274,-1218.2,0.00019671,2]
[365133104,1749483080283,-490.0,0.00019671,2]
[365133105,1749483080293,-666.39,0.00019671,2]
[365133106,1749483080302,-2776.46,0.00019671,2]
[365133107,1749483080311,-5404.45,0.00019671,2]
[365133108,1749483080321,-421.7457715,0.00019671,2]
[365133109,1749483080330,-851.39,0.00019671,2]
[365133110,1749483080339,-2145.34,0.00019671,2]
[365133111,1749483080349,-614.11,0.00019671,2]
[365133112,1749483080358,-727.42,0.00019671,2]
[365133113,1749483080368,-490.0,0.00019671,2]
[365133114,1749483080377,-273.98550522,0.00019671,2]
[365133115,1749483080387,-490.0,0.00019671,2]
[365133116,1749483080396,-490.0,0.00019671,2]
[365133117,1749483080405,-948.79,0.00019671,2]
[365133118,1749483080415,-4070.27,0.00019671,2]
[365133119,1749483080424,-490.0,0.00019671,2]
[365133120,1749483080434,-1459.98,0.00019671,2]
[365133121,1749483080444,-739.98,0.00019671,2]
[365133122,1749483080453,-1063.03,0.00019671,2]
[365133123,1749483080463,-814.57,0.00019671,2]
[365133124,1749483080472,-490.0,0.00019671,2]
[365133125,1749483080481,-1204.91,0.00019671,2]
[365133126,1749483080491,-586.2,0.00019671,2]
[365133127,1749483080500,-490.0,0.00019671,2]
[365133128,1749483080509,-490.0,0.00019671,2]
[365133129,1749483080519,-1944.74,0.00019671,2]
[365133130,1749483080528,-490.0,0.00019671,2]
[365133131,1749483080538,-490.0,0.00019671,2]
[365133132,1749483080548,-953.43,0.00019671,2]
[365133133,1749483080557,-490.0,0.00019671,2]
[365133134,1749483080567,-886.64,0.00019671,2]
[365133135,1749483080577,-1352.01,0.00019671,2]
[365133136,1749483080586,-490.0,0.00019671,2]
[365133137,1749483080595,-2419.77,0.00019671,2]
[365133138,1749483080605,-1415.02,0.00019671,2]
[365133139,1749483080614,-3460.39,0.00019671,2]
[365133140,1749483080623,-1421.95,0.00019671,2]
[365133141,1749483080632,-490.0,0.00019671,2]
[365133142,1749483080642,-490.0,0.00019671,2]
[365133143,1749483080652,-4303.53,0.00019671,2]
[365133144,1749483080662,-975.71,0.00019671,2]
[365133145,1749483080672,-692.34,0.00019671,2]
[365133146,1749483080682,-490.0,0.00019671,2]
[365133147,1749483080693,-490.0,0.00019671,2]
[365133148,1749483080706,-1244.83,0.00019671,2]
[365133149,1749483080716,-2516.42,0.00019671,2]
[365133150,1749483080725,-490.0,0.00019671,2]
[365133151,1749483080735,-524.14,0.00019671,2]
[365133152,1749483080744,-1013.88,0.00019671,2]
[365133153,1749483080754,-490.0,0.00019671,2]
[365133154,1749483080764,-279.55165109,0.00019671,2]
[365133155,1749483080774,-541.8,0.00019671,2]
[365133156,1749483080783,-1557.57,0.00019671,2]
[365133157,1749483080792,-3062.87,0.00019671,2]
[365133158,1749483080801,-1852.33,0.00019671,2]
[365133159,1749483080811,-490.0,0.00019671,2]
[365133160,1749483080821,-629.58,0.00019671,2]
[365133161,1749483080830,-1242.51,0.00019671,2]
[365133162,1749483080840,-505.49,0.00019671,2]
[365133163,1749483080850,-1125.57,0.00019671,2]
[365133164,1749483080860,-1080.73,0.00019671,2]
[365133165,1749483080870,-4018.09,0.00019671,2]
[365133166,1749483080880,-938.21,0.00019671,2]
[365133167,1749483080889,-642.78,0.00019671,2]
[365133168,1749483080899,-490.0,0.00019671,2]
[365133169,1749483080910,-490.0,0.00019671,2]
[365133170,1749483080919,-920.15,0.00019671,2]
[365133171,1749483080929,-1841.33,0.00019671,2]
[365133172,1749483080941,-748.52,0.00019671,2]